[Event "FRA-chT Top 12"]
[Site "Brest"]
[Date "2018.06.03"]
[Round "9"]
[White "Kosteniuk, Alexandra"]
[Black "Edouard, Romain"]
[Result "0-1"]
[ECO "B60"]
[WhiteElo "2555"]
[BlackElo "2621"]
[PlyCount "138"]
[EventDate "2018.05.26"]
[EventType "team-tourn"]
[EventRounds "11"]
[EventCountry "FRA"]
[SourceTitle "EXT 2019"]
[Source "ChessBase"]
[SourceDate "2018.10.10"]
[SourceVersion "1"]
[SourceVersionDate "2018.10.10"]
[SourceQuality "1"]
[WhiteTeam "Clichy Echecs 92"]
[BlackTeam "Bischwiller"]
[WhiteTeamCountry "FRA"]
[BlackTeamCountry "FRA"]
[TimeControl "40/5400+30:1800+30"]

1. e4 {[%emt 0:00:00]} c5 {[%emt 0:00:04]} 2. Nf3 {[%emt 0:00:00]} d6 {[%emt 0:
00:04]} 3. d4 {[%emt 0:00:00]} cxd4 {[%emt 0:00:04]} 4. Nxd4 {[%emt 0:00:00]}
Nf6 {[%emt 0:00:04]} 5. Nc3 {[%emt 0:00:00]} Nc6 {[%emt 0:00:07]} 6. Bg5 {
[%emt 0:00:01]} e6 {[%emt 0:00:16]} 7. Qd2 {[%emt 0:00:06]} Qb6 {[%emt 0:00:22]
} (7... a6) 8. Bxf6 {[%emt 0:00:32]} gxf6 {[%emt 0:00:09]} 9. Nb3 {[%emt 0:00:
09]} a6 {[%emt 0:00:13]} 10. Be2 {[%emt 0:00:27]} (10. O-O-O Qc7 11. Be2 h5 12.
f4 b5 13. a3 Rb8 14. Kb1 b4 15. axb4 Nxb4 16. Nb5 Qxc2+ 17. Qxc2 Nxc2 18. Nxd6+
Bxd6 19. Rxd6 Nb4 20. Na5 Bb7 21. Bf3 Ba8 22. Rc1 O-O 23. Rc7 Rfd8 24. Rxd8+
Rxd8 25. Nb7 Bxb7 26. Rxb7 a5 27. Rb5 Rd2 28. Rxh5 Nd3 29. Rb5 Nxf4 30. Rxa5
Nxg2 31. Rc5 Ne1 32. Rc3 Rxh2 33. Bd1 Rd2 34. Kc1 Rd4 35. Be2 Kf8 36. Rc4 Rxc4+
37. Bxc4 Ke7 38. Kd2 Nf3+ 39. Kc3 Kd6 {Bosiocic,M (2605)-Kozul,Z (2611) Pozega
2018 1/2-1/2}) 10... Qc7 {[%emt 0:01:41]} 11. Qf4 {[%emt 0:09:13]} Be7 {
[%emt 0:14:16]} 12. O-O-O {[%emt 0:09:00]} h5 {[%emt 0:17:11]} 13. Kb1 $146 {
[%emt 0:08:07]} (13. Qg3 Kf8 14. f4 b5 15. Bf3 Rb8 16. Kb1 b4 17. Ne2 a5 18.
Nbd4 Nxd4 19. Nxd4 a4 20. Qe1 Rb6 21. Rf1 Ba6 22. Be2 Bb7 23. Bf3 h4 24. Qf2 a3
25. Rd2 axb2 26. Rfd1 Ra6 27. Qe3 Kg7 28. Kxb2 Rha8 29. Ra1 Kg8 30. Rd3 Bf8 31.
f5 e5 32. Nb3 Rc6 33. Re1 Kh7 34. Qf2 Bh6 35. Rdd1 Rxc2+ 36. Qxc2 Rxa2+ 37.
Kxa2 Qxc2+ 38. Ka1 Ba6 {0-1 (38) Sinprayoon,P (2245)-Spraggett,K (2525) Dubai
1986}) 13... Bd7 {[%emt 0:06:25]} 14. Qe3 {[%emt 0:06:27]} b5 {[%emt 0:05:11]}
15. Bd3 {[%emt 0:28:35]} Qa7 $1 {[%emt 0:02:55]} 16. Qxa7 {[%emt 0:07:26]} Rxa7
$11 {[%emt 0:00:27]} 17. f4 {[%emt 0:02:43]} Bc8 {[%emt 0:04:43]} 18. Rhe1 {
[%emt 0:06:00]} Rd7 {[%emt 0:00:44]} 19. Re3 {[%emt 0:00:55]} Bf8 {[%emt 0:14:
11]} 20. Rh3 {[%emt 0:01:44]} h4 {[%emt 0:00:35]} 21. Be2 {[%emt 0:01:42]} Bg7
{[%emt 0:03:15]} 22. a3 {[%emt 0:01:52]} Rd8 {[%emt 0:00:44]} 23. Bg4 {[%emt 0:
02:07]} Bb7 {[%emt 0:03:56]} 24. Rhd3 {[%emt 0:08:29]} Bh6 {[%emt 0:00:58]} 25.
Ne2 {[%emt 0:01:16]} Ke7 {[%emt 0:01:03]} 26. Bf3 {[%emt 0:00:38]} Ba8 {
[%emt 0:05:00]} 27. Nd2 {[%emt 0:00:48]} Na7 {[%emt 0:05:00]} 28. c4 {[%emt 0:
00:28]} (28. Nf1 a5 29. Ne3 Rhg8 (29... b4 30. Nc4)) 28... Rc8 {[%emt 0:03:50]}
29. b3 {[%emt 0:01:48]} Rc7 {[%emt 0:01:02]} 30. Rc1 {[%emt 0:00:52]} Rhc8 {
[%emt 0:02:46]} 31. Kb2 {[%emt 0:00:07]} Bg7 {[%emt 0:01:33]} 32. Kb1 {[%emt 0:
01:45]} Bc6 {[%emt 0:03:19]} (32... a5 $15) 33. Rd1 {[%emt 0:00:33]} Be8 {
[%emt 0:01:05]} 34. Bg4 {[%emt 0:00:44]} a5 {[%emt 0:01:20]} 35. f5 {[%emt 0:
02:00]} a4 {[%emt 0:00:47]} 36. fxe6 {[%emt 0:00:05]} fxe6 {[%emt 0:00:06]} 37.
Nf3 {[%emt 0:00:59]} Bg6 {[%emt 0:01:06]} 38. Nc3 {[%emt 0:00:18]} bxc4 {
[%emt 0:01:02]} 39. Rxd6 {[%emt 0:00:06]} cxb3 {[%emt 0:00:27]} 40. Rxe6+ {
[%emt 0:00:41]} Kf8 {[%emt 0:31:33]} 41. Nd5 {[%emt 0:05:19]} Nb5 {[%emt 0:00:
00]} 42. Nxc7 {[%emt 0:00:28]} Nc3+ {[%emt 0:00:00]} 43. Kc1 {[%emt 0:00:38]}
Nxd1 {[%emt 0:00:00]} 44. Kxd1 {[%emt 0:00:11]} Rxc7 {[%emt 0:00:00]} 45. Nxh4
{[%emt 0:00:39]} Bh7 {[%emt 0:00:24]} 46. Rb6 {[%emt 0:03:24]} Bxe4 {[%emt 0:
01:15]} 47. Nf5 {[%emt 0:02:33]} Kg8 {[%emt 0:00:05]} 48. Nd6 {[%emt 0:07:37]}
Bc2+ {[%emt 0:01:24]} 49. Ke2 {[%emt 0:00:05]} Bf8 {[%emt 0:01:09]} 50. Be6+ {
[%emt 0:01:40]} Kh7 {[%emt 0:00:31]} 51. Nc4 {[%emt 0:04:23]} Bc5 {[%emt 0:00:
32]} 52. Rb5 {[%emt 0:00:20]} Bd4 {[%emt 0:00:43]} 53. Bd5 {[%emt 0:07:04]} Bg6
{[%emt 0:00:11]} 54. Kf3 {[%emt 0:00:24]} Rd7 {[%emt 0:01:04]} 55. Be4 {
[%emt 0:02:14]} Bc3 {[%emt 0:00:20]} 56. Bxg6+ {[%emt 0:01:22]} Kxg6 {[%emt 0:
00:01]} 57. h4 {[%emt 0:00:07]} Rd4 {[%emt 0:01:01]} 58. h5+ {[%emt 0:00:04]}
Kf7 {[%emt 0:00:37]} 59. Ne3 {[%emt 0:01:33]} b2 {[%emt 0:00:32]} 60. h6 Rb4
61. axb4 b1=Q 62. h7 Kg7 63. Rb7+ Kh8 64. b5 Bd4 65. Ng4 Qf5+ 66. Kg3 Be5+ 67.
Nxe5 Qxe5+ 68. Kh3 a3 69. Ra7 Qe3+ 0-1

[Event "FRA-chT Top 12"]
[Site "Brest"]
[Date "2018.06.04"]
[Round "10"]
[White "Kosteniuk, Alexandra"]
[Black "Wagner, Dennis"]
[Result "1/2-1/2"]
[ECO "C54"]
[WhiteElo "2555"]
[BlackElo "2567"]
[PlyCount "102"]
[EventDate "2018.05.26"]
[EventType "team-tourn"]
[EventRounds "11"]
[EventCountry "FRA"]
[SourceTitle "EXT 2019"]
[Source "ChessBase"]
[SourceDate "2018.10.10"]
[SourceVersion "1"]
[SourceVersionDate "2018.10.10"]
[SourceQuality "1"]
[WhiteTeam "Clichy Echecs 92"]
[BlackTeam "Nice Alekhine"]
[WhiteTeamCountry "FRA"]
[BlackTeamCountry "FRA"]
[TimeControl "40/5400+30:1800+30"]

1. e4 {[%emt 0:05:22]} e5 {[%emt 0:00:07]} 2. Nf3 {[%emt 0:00:10]} Nc6 {
[%emt 0:00:07]} 3. Bc4 {[%emt 0:00:06]} Bc5 {[%emt 0:00:09]} 4. d3 {[%emt 0:00:
06]} Nf6 {[%emt 0:00:13]} 5. Bg5 {[%emt 0:00:07]} h6 {[%emt 0:02:43]} 6. Bh4 {
[%emt 0:02:31]} d6 {[%emt 0:06:08]} 7. c3 {[%emt 0:00:34]} g5 {[%emt 0:11:16]}
8. Bg3 {[%emt 0:00:10]} a6 {[%emt 0:00:03]} 9. a4 {[%emt 0:00:08]} Ba7 {
[%emt 0:00:08]} 10. Nbd2 {[%emt 0:00:12]} O-O {[%emt 0:03:07]} 11. h4 {[%emt 0:
00:11]} g4 {[%emt 0:00:36]} 12. Nh2 {[%emt 0:00:05]} Kg7 {[%emt 0:03:29]} 13.
Qe2 {[%emt 0:05:23]} Bd7 $146 {[%emt 0:19:36]} (13... Ne7 14. h5 Nxh5 15. Nxg4
Nxg3 16. fxg3 Ng8 17. Ne3 Qg5 18. Nef1 Ne7 19. Nf3 Qg6 20. O-O-O f5 21. Bb3 b5
{1/2-1/2 (21) Eljanov,P (2702)-Fressinet,L (2651) Brest 2018}) 14. Ndf1 {
[%emt 0:08:57]} b5 {[%emt 0:00:53]} 15. Bb3 {[%emt 0:02:56]} b4 {[%emt 0:02:39]
} 16. Ne3 {[%emt 0:05:13]} Rb8 {[%emt 0:00:05]} 17. Bd1 {[%emt 0:01:29]} bxc3 {
[%emt 0:01:43]} 18. bxc3 {[%emt 0:03:03]} h5 {[%emt 0:00:03]} 19. O-O {[%emt 0:
01:16]} Ne7 {[%emt 0:06:04]} 20. Qd2 {[%emt 0:07:22]} Nh7 {[%emt 0:05:40]} 21.
d4 {[%emt 0:02:35]} exd4 {[%emt 0:05:21]} 22. cxd4 {[%emt 0:00:06]} f5 {
[%emt 0:00:11]} 23. exf5 {[%emt 0:08:12]} Nxf5 {[%emt 0:00:10]} 24. Nxf5+ {
[%emt 0:00:19]} Bxf5 {[%emt 0:00:09]} 25. Be2 {[%emt 0:00:30]} Nf6 {[%emt 0:03:
41]} 26. Qg5+ {[%emt 0:06:06]} Bg6 {[%emt 0:00:08]} 27. Bf4 {[%emt 0:00:25]}
Ng8 {[%emt 0:13:03]} 28. Qxd8 {[%emt 0:02:23]} Rbxd8 {[%emt 0:00:46]} 29. Be3 {
[%emt 0:01:07]} a5 {[%emt 0:09:00]} 30. Rac1 {[%emt 0:01:23]} Rf7 {[%emt 0:00:
56]} 31. Rfe1 {[%emt 0:03:40]} Nh6 {[%emt 0:00:19]} 32. Bg5 {[%emt 0:08:29]} g3
{[%emt 0:05:47]} 33. fxg3 {[%emt 0:02:26]} Bxd4+ {[%emt 0:00:15]} 34. Kh1 {
[%emt 0:00:01]} Nf5 {[%emt 0:01:08]} 35. Nf1 {[%emt 0:01:00]} Re8 {[%emt 0:01:
09]} 36. Bc4 {[%emt 0:04:21]} Rxe1 {[%emt 0:00:02]} 37. Rxe1 {[%emt 0:00:04]}
Rf8 {[%emt 0:00:05]} 38. Kh2 {[%emt 0:01:34]} Rb8 {[%emt 0:01:37]} 39. Bd2 {
[%emt 0:01:28]} Ra8 {[%emt 0:00:49]} (39... c6 $15) 40. Kh3 {[%emt 0:02:02]} c6
{[%emt 0:30:31]} 41. Be6 {[%emt 0:35:56]} Be5 {[%emt 0:00:00]} 42. g4 {[%emt 0:
00:00]} hxg4+ {[%emt 0:00:00]} 43. Kxg4 {[%emt 0:00:00]} Nd4 {[%emt 0:00:00]}
44. h5 {[%emt 0:00:00]} Bxh5+ {[%emt 0:00:00]} 45. Kxh5 {[%emt 0:00:00]} Nxe6 {
[%emt 0:00:00]} 46. Ne3 {[%emt 0:00:00]} Nf4+ {[%emt 0:00:00]} 47. Kg5 {
[%emt 0:00:00]} Nd3 {[%emt 0:00:00]} 48. Rf1 {[%emt 0:00:00]} Rg8 {[%emt 0:00:
00]} 49. Ng4 {[%emt 0:00:00]} Kh7+ {[%emt 0:03:40]} 50. Kh5 {[%emt 0:00:00]}
Rg7 {[%emt 0:00:56]} 51. Rf3 {[%emt 0:00:00]} Nc5 {[%emt 0:00:04]} 1/2-1/2

[Event "FRA-chT Top 12"]
[Site "Brest"]
[Date "2018.06.05"]
[Round "11"]
[White "Cappon, John"]
[Black "Kosteniuk, Alexandra"]
[Result "0-1"]
[ECO "B18"]
[WhiteElo "2145"]
[BlackElo "2555"]
[PlyCount "96"]
[EventDate "2018.05.26"]
[EventType "team-tourn"]
[EventRounds "11"]
[EventCountry "FRA"]
[SourceTitle "EXT 2019"]
[Source "ChessBase"]
[SourceDate "2018.10.10"]
[SourceVersion "1"]
[SourceVersionDate "2018.10.10"]
[SourceQuality "1"]
[WhiteTeam "T H F Saint-Quentin"]
[BlackTeam "Clichy Echecs 92"]
[WhiteTeamCountry "FRA"]
[BlackTeamCountry "FRA"]
[TimeControl "40/5400+30:1800+30"]

1. e4 {[%emt 0:00:00]} c6 {[%emt 0:00:24]} 2. d4 {[%emt 0:00:00]} d5 {[%emt 0:
00:05]} 3. Nd2 {[%emt 0:00:25]} dxe4 {[%emt 0:00:11]} 4. Nxe4 {[%emt 0:00:06]}
Bf5 {[%emt 0:00:07]} 5. Ng3 {[%emt 0:00:07]} Bg6 {[%emt 0:00:06]} 6. f4 {
[%emt 0:00:07]} (6. h4) 6... e6 {[%emt 0:00:30]} 7. Nf3 {[%emt 0:00:59]} Bd6 {
[%emt 0:01:00]} 8. Bd3 {[%emt 0:02:55]} Ne7 {[%emt 0:00:41]} 9. O-O {[%emt 0:
00:20]} O-O {[%emt 0:02:31]} 10. Bxg6 {[%emt 0:01:43]} hxg6 {[%emt 0:02:23]}
11. c3 $146 {[%emt 0:07:05]} (11. Ne4 Qc7 12. Qe1 Rd8 13. Bd2 c5 14. dxc5 Bxc5+
15. Kh1 Nd7 16. Nfg5 Nf8 17. Nxc5 Qxc5 18. Bb4 Qc7 19. c4 a5 20. Ba3 Nf5 21. b3
{1/2-1/2 (21) Munoz Pantoja,M (2504)-Cervello Tost,F (2304) Barcelona 2018})
11... c5 {[%emt 0:08:27]} 12. Ne4 {[%emt 0:02:19]} cxd4 {[%emt 0:08:29]} 13.
Nxd6 {[%emt 0:02:07]} Qxd6 {[%emt 0:00:09]} 14. Qxd4 {[%emt 0:00:20]} Qc7 {
[%emt 0:00:18]} 15. Qe5 {[%emt 0:03:44]} Qb6+ {[%emt 0:03:35]} 16. Qd4 {
[%emt 0:06:12]} Qa6 {[%emt 0:00:17]} 17. Qf2 {[%emt 0:06:42]} Nd7 {[%emt 0:01:
20]} 18. Nd4 {[%emt 0:09:46]} Rfd8 {[%emt 0:07:28]} 19. Qe2 {[%emt 0:17:54]}
Qxe2 {[%emt 0:08:51]} 20. Nxe2 {[%emt 0:00:14]} Nb6 {[%emt 0:00:09]} 21. b3 {
[%emt 0:09:25]} Rd3 {[%emt 0:07:05]} 22. c4 {[%emt 0:04:40]} Nf5 {[%emt 0:00:
21]} 23. Ba3 {[%emt 0:11:37]} (23. g4 $11) 23... Rd2 {[%emt 0:12:15]} 24. Rfe1
{[%emt 0:03:02]} a5 {[%emt 0:00:12]} 25. Bc5 {[%emt 0:00:22]} Nd7 {[%emt 0:00:
05]} 26. Bf2 {[%emt 0:00:13]} Nf6 {[%emt 0:00:51]} 27. Nc3 {[%emt 0:01:36]} Ng4
{[%emt 0:07:04]} 28. Rf1 {[%emt 0:01:46]} Rad8 {[%emt 0:02:23]} 29. Ne4 {
[%emt 0:03:05]} Rc2 {[%emt 0:02:31]} 30. Rad1 {[%emt 0:00:31]} Rxd1 {[%emt 0:
02:36]} 31. Rxd1 {[%emt 0:00:05]} f6 {[%emt 0:00:02]} 32. Ra1 {[%emt 0:03:30]}
Re2 {[%emt 0:05:48]} 33. h3 {[%emt 0:00:35]} Nxf2 {[%emt 0:00:12]} 34. Nxf2 {
[%emt 0:00:06]} Ne3 {[%emt 0:00:02]} 35. g4 {[%emt 0:00:59]} b6 {[%emt 0:04:14]
} 36. Nd3 {[%emt 0:00:54]} Rg2+ {[%emt 0:02:04]} 37. Kh1 {[%emt 0:00:06]} Rd2 {
[%emt 0:00:03]} 38. Ne1 {[%emt 0:01:35]} Kf7 {[%emt 0:01:42]} 39. Nf3 {[%emt 0:
00:39]} Rf2 {[%emt 0:00:19]} 40. Nd4 {[%emt 0:01:33]} Rxf4 {[%emt 0:30:10]} 41.
Nb5 {[%emt 0:00:56]} Rf3 {[%emt 0:00:00]} 42. Kh2 {[%emt 0:02:51]} Rf2+ {
[%emt 0:00:00]} 43. Kg3 {[%emt 0:00:52]} Rd2 {[%emt 0:00:00]} 44. Re1 {[%emt 0:
03:23]} Nc2 {[%emt 0:00:00]} 45. Rf1 {[%emt 0:05:00]} Nb4 {[%emt 0:00:00]} 46.
a3 {[%emt 0:01:06]} Nc6 {[%emt 0:00:00]} 47. Rf3 {[%emt 0:00:32]} e5 {[%emt 0:
00:00]} 48. Re3 {[%emt 0:01:04]} f5 {[%emt 0:00:00]} 0-1